bitfinex-derivatives/quotes_BNBF0:USTF0_20251010
["timestamp","ask_amount","ask_price","bid_price","bid_amount"]
[1760057140490,0.13764652,1264.2,1263.3,0.54079287]
[1760057140693,0.13764652,1264.2,1263.4,0.54079287]
[1760057140893,0.13764652,1264.2,1263.5,0.54079287]
[1760057141096,0.13764652,1264.2,1263.6,0.54079287]
[1760057141297,0.13764652,1264.2,1263.7,0.54079287]
[1760057141597,0.13764652,1264.2,1263.8,0.54079287]
[1760057141793,0.13764652,1264.2,1263.9,0.54079287]
[1760057142096,0.13764652,1264.2,1264.0,0.54079287]
[1760057142296,0.13764652,1264.2,1263.5,0.583472]
[1760057142597,0.13764652,1264.2,1263.6,0.54043477]
[1760057142798,0.13764652,1264.2,1263.7,0.54043477]
[1760057142998,0.13764652,1264.2,1263.8,0.54043477]
[1760057143197,0.13764652,1264.2,1263.9,0.54043477]
[1760057143398,0.13764652,1264.2,1264.0,0.54043477]
[1760057143598,0.13764652,1264.2,1263.5,0.583472]
[1760057143795,0.13764652,1264.2,1263.6,0.54051597]
[1760057143998,0.13764652,1264.2,1263.7,0.54051597]
[1760057144196,0.13764652,1264.2,1263.8,0.54051597]
[1760057144396,0.13764652,1264.2,1263.6,0.583472]
[1760057144397,0.13764652,1264.2,1263.9,0.54051597]
[1760057144596,0.13764652,1264.2,1263.6,0.583472]
[1760057144798,0.13764652,1264.2,1263.7,0.54044664]
[1760057144996,0.13764652,1264.2,1263.8,0.54044664]
[1760057145196,0.13764652,1264.2,1263.9,0.54044664]
[1760057145501,0.13764652,1264.2,1264.0,0.54044664]
[1760057145695,0.13764652,1264.2,1263.5,0.583472]
[1760057145896,0.13764652,1264.2,1263.6,0.54038144]
[1760057146099,0.13764652,1264.2,1263.7,0.54038144]
[1760057146299,0.13764652,1264.2,1263.8,0.54038144]
[1760057146500,0.13764652,1264.2,1263.9,0.54038144]
[1760057146797,0.13764652,1264.2,1264.0,0.54038144]
[1760057146998,0.13764652,1264.2,1263.5,0.583472]
[1760057147201,0.13764652,1264.2,1263.6,0.54032021]
[1760057147400,0.13764652,1264.2,1263.7,0.54032021]
[1760057147601,0.13764652,1264.2,1263.8,0.54032021]
[1760057147801,0.13764652,1264.2,1263.9,0.54032021]
[1760057147998,0.13764652,1264.2,1264.0,0.54032021]
[1760057148199,0.13764652,1264.2,1263.5,0.583472]
[1760057148499,0.13764652,1264.2,1263.6,0.54017628]
[1760057148698,0.13764652,1264.2,1263.7,0.54017628]
[1760057149002,0.13764652,1264.2,1263.8,0.54017628]
[1760057149201,0.13764652,1264.2,1263.9,0.54017628]
[1760057149399,0.13764652,1264.2,1264.0,0.54017628]
[1760057149703,0.13764652,1264.2,1263.5,0.5832849]
[1760057149903,0.13764652,1264.2,1263.6,0.54019736]
[1760057150203,0.13764652,1264.2,1263.7,0.54019736]
[1760057150499,0.13764652,1264.2,1263.8,0.54019736]
[1760057150702,0.13764652,1264.2,1263.9,0.54019736]
[1760057150998,0.13764652,1264.2,1264.0,0.54019736]
[1760057151202,0.13764652,1264.2,1264.1,0.54019736]
[1760057161408,0.13764652,1264.2,1263.5,0.5832849]
[1760057161703,0.13764652,1264.2,1263.6,0.53973721]
[1760057161906,0.13764652,1264.2,1263.7,0.53973721]
[1760057162105,0.13764652,1264.2,1263.8,0.53973721]
[1760057162307,0.13764652,1264.2,1263.9,0.53973721]
[1760057162506,0.13764652,1264.2,1263.4,0.5832849]
[1760057162703,0.13764652,1264.2,1263.5,0.53989469]
[1760057162906,0.13764652,1264.2,1263.2,0.5832849]
[1760057163207,0.13764652,1264.2,1262.8,0.5832849]
[1760057163407,0.13764652,1264.2,1262.9,0.54060404]
[1760057163606,0.13764652,1264.2,1263.0,0.54060404]
[1760057163906,0.13764652,1264.2,1263.1,0.54060404]
[1760057164107,0.13764652,1264.2,1262.7,0.5832849]
[1760057164303,0.13764652,1264.2,1262.8,0.54028401]
[1760057164508,0.13764652,1264.2,1262.9,0.54028401]
[1760057164705,0.13764652,1264.2,1263.0,0.54028401]
[1760057164909,0.13764652,1264.2,1263.1,0.54028401]
[1760057165108,0.13764652,1264.2,1262.7,0.5832849]
[1760057165305,0.13764652,1264.2,1262.8,0.53990565]
[1760057165510,0.13764652,1264.2,1262.9,0.53990565]
[1760057165711,0.13764652,1264.2,1263.0,0.53990565]
[1760057165908,0.13764652,1264.2,1263.1,0.53990565]
[1760057166112,0.13764652,1264.2,1262.7,0.5832849]
[1760057166313,0.13764652,1264.2,1262.8,0.53977641]
[1760057166514,0.13764652,1264.2,1262.9,0.53977641]
[1760057166715,0.13764652,1264.2,1263.0,0.53977641]
[1760057166912,0.13764652,1264.2,1263.1,0.53977641]
[1760057167113,0.13764652,1264.2,1263.2,0.53977641]
[1760057167311,1.96694924,1265.9,1262.7,0.5832849]
[1760057167517,1.96694924,1265.9,1262.8,0.53965792]
[1760057167813,1.96694924,1266.1,1262.9,0.53965792]
[1760057168112,1.96694924,1266.1,1263.0,0.53965792]
[1760057168312,1.96694924,1266.1,1262.5,0.5832849]
[1760057168515,1.96694924,1266.1,1262.6,0.53907315]
[1760057168712,1.96694924,1266.1,1262.7,0.53907315]
[1760057168917,1.96694924,1266.1,1262.5,0.5832849]
[1760057168918,0.13769064,1265.3,1262.8,0.53907315]
[1760057169118,0.13769064,1265.3,1262.9,0.53907315]
[1760057169317,0.13769064,1265.3,1263.0,0.53907315]
[1760057169520,0.13769064,1265.3,1262.5,0.5832849]
[1760057169719,0.13769064,1265.3,1262.6,0.53894452]
[1760057169918,0.13769064,1265.3,1262.7,0.53894452]
[1760057170120,0.13769064,1265.3,1262.8,0.53894452]
[1760057170321,0.13769064,1265.3,1262.9,0.53894452]
[1760057170520,0.13769064,1265.3,1263.0,0.53894452]
[1760057170817,0.13769064,1265.3,1263.1,0.53894452]
[1760057171016,0.13769064,1265.3,1262.5,0.5832849]
[1760057171220,0.13769064,1265.3,1262.6,0.53871428]
[1760057171422,0.13769064,1265.3,1262.7,0.53871428]
[1760057171620,0.13769064,1265.3,1262.8,0.53871428]
[1760057171822,0.13769064,1265.3,1262.9,0.53871428]
[1760057172116,0.13769064,1265.3,1262.5,0.5832849]
[1760057172117,0.13769064,1265.3,1263.0,0.53871428]
[1760057172317,0.13769064,1265.3,1263.1,0.53871428]
[1760057172520,0.13769064,1265.3,1262.5,0.5832849]
[1760057172822,0.19655521,1262.7,1262.6,0.53858504]
[1760057173217,0.13769064,1265.3,1262.6,0.53858504]
[1760057173421,0.13769064,1265.3,1262.7,0.53858504]
[1760057173618,0.13769064,1265.3,1262.8,0.53858504]
[1760057173818,0.13769064,1265.3,1262.9,0.53858504]
[1760057174022,0.13769064,1265.3,1263.0,0.53858504]
[1760057174218,0.13769064,1265.3,1263.1,0.53858504]
[1760057174418,0.13769064,1265.3,1262.5,0.5832849]
[1760057174621,0.19647906,1262.7,1262.6,0.53840183]
[1760057175023,0.13769064,1265.3,1262.6,0.53840183]
[1760057175223,0.13769064,1265.3,1262.7,0.53840183]
[1760057175524,0.13769064,1265.3,1262.8,0.53840183]
[1760057175823,0.13769064,1265.3,1262.9,0.53840183]
[1760057176022,0.13769064,1265.3,1263.0,0.53840183]
[1760057176220,0.13769064,1265.3,1263.1,0.53840183]
[1760057176424,0.13769064,1265.3,1262.5,0.5832849]
[1760057176622,0.13769064,1265.3,1262.6,0.53829492]
[1760057176821,0.13769064,1265.3,1262.7,0.53829492]
[1760057177021,0.13769064,1265.3,1262.8,0.53829492]
[1760057177324,0.13769064,1265.3,1262.9,0.53829492]
[1760057177625,0.13769064,1265.3,1263.0,0.53829492]
[1760057177819,0.13769064,1265.3,1263.1,0.53829492]
[1760057178022,0.13769064,1265.3,1262.5,0.5832849]
[1760057178324,0.13769064,1265.3,1262.6,0.53811954]
[1760057178522,0.13769064,1265.3,1262.7,0.53811954]
[1760057178724,0.13769064,1265.3,1262.8,0.53811954]
[1760057179022,0.13769064,1265.3,1262.6,0.5832849]
[1760057179023,0.13769064,1265.3,1262.9,0.53811954]
[1760057179221,0.13769064,1265.3,1263.0,0.53811954]
[1760057179422,0.13769064,1265.3,1262.6,0.5832849]
[1760057179620,0.19631813,1262.7,1262.6,0.5832849]
[1760057179818,0.19631813,1262.7,1262.6,1.12132275]
[1760057180021,0.13769064,1265.3,1262.6,1.12132275]
[1760057180222,0.13769064,1265.3,1262.7,0.53803785]
[1760057180421,0.13769064,1265.3,1262.8,0.53803785]
[1760057180725,0.13769064,1265.3,1262.9,0.53803785]
[1760057180925,0.13769064,1265.3,1263.0,0.53803785]
[1760057181126,0.13769064,1265.3,1262.4,0.5832849]
[1760057181324,0.19625422,1262.6,1262.5,0.53795432]
[1760057182127,0.19625422,1262.6,1262.5,1.12123922]
[1760057183326,0.19625422,1262.6,1262.5,0.53795432]
[1760057184528,0.19625422,1262.6,1262.5,1.12123922]
[1760057188633,0.13769064,1265.3,1262.5,1.12123922]
[1760057188932,0.13769064,1265.3,1262.6,0.53795432]
[1760057189128,0.13769064,1265.3,1262.7,0.53795432]
[1760057189432,0.13769064,1265.3,1262.8,0.53795432]
[1760057189629,0.13769064,1265.3,1262.9,0.53795432]
[1760057189929,0.13769064,1265.3,1262.4,0.5832849]
[1760057190230,0.13769064,1265.3,1262.5,0.53746592]
[1760057190431,0.13769064,1265.3,1262.6,0.53746592]
[1760057190628,0.13769064,1265.3,1262.7,0.53746592]
[1760057190832,0.13769064,1265.3,1262.3,0.5832849]
[1760057191028,0.13769064,1265.3,1262.4,0.53765842]
[1760057191231,0.13769064,1265.3,1262.5,0.53765842]
[1760057191429,0.13769064,1265.3,1262.3,0.5832849]
[1760057191430,0.13769064,1265.3,1262.6,0.53765842]
[1760057191731,0.13769064,1265.3,1262.7,0.53765842]
[1760057191928,0.13769064,1265.3,1262.3,0.5832849]
[1760057192132,0.13769064,1265.3,1262.4,0.53756546]
[1760057192429,0.13769064,1265.3,1262.5,0.53756546]
[1760057192630,0.13769064,1265.3,1262.6,0.53756546]
[1760057192828,0.13769064,1265.3,1262.7,0.53756546]
[1760057193033,0.13769064,1265.3,1262.8,0.53756546]
[1760057193233,0.13769064,1265.3,1262.4,0.5832849]
[1760057193234,0.13769064,1265.3,1262.9,0.53756546]
[1760057193534,0.13769064,1265.3,1262.4,0.5832849]
[1760057193733,0.13769064,1265.3,1262.5,0.53729893]
[1760057193930,0.13769064,1265.3,1262.6,0.53729893]
[1760057194230,0.13769064,1265.3,1262.7,0.53729893]
[1760057194435,0.13769064,1265.3,1262.8,0.53729893]
[1760057194634,0.13769064,1265.3,1262.9,0.53729893]
[1760057194834,0.13769064,1265.3,1262.3,0.5832849]
[1760057195032,0.13769064,1265.3,1262.4,0.53745678]
[1760057195233,0.13769064,1265.3,1262.5,0.53745678]
[1760057195435,0.13769064,1265.3,1262.6,0.53745678]
[1760057195634,0.13769064,1265.3,1262.7,0.53745678]
[1760057195935,0.13769064,1265.3,1262.4,0.5832849]
[1760057195936,0.13769064,1265.3,1262.8,0.53745678]
[1760057196132,0.13769064,1265.3,1262.9,0.53745678]
[1760057196436,0.13769064,1265.3,1262.4,0.5832849]
[1760057196636,0.19584622,1262.5,1262.4,0.5832849]
[1760057196838,0.19584622,1262.5,1262.4,1.12080713]
[1760057199638,0.19584622,1262.6,1262.4,0.53752223]
[1760057199936,0.19584622,1262.6,1262.5,0.53752223]
[1760057205041,0.19584622,1262.6,1262.5,1.69896642]
[1760057205245,0.19584622,1262.6,1262.5,0.53752223]
[1760057207841,0.19584622,1262.6,1262.5,1.699233]
[1760057210847,0.19584622,1262.6,1262.5,0.53752223]
[1760057212554,0.19584622,1262.6,1262.5,1.69986372]
[1760057215957,0.19584622,1262.6,1262.5,0.53752223]
[1760057220562,0.19584622,1262.6,1262.5,1.3139173]
[1760057221962,0.19584622,1262.6,1262.5,0.53752223]
[1760057222159,0.19584622,1262.6,1262.5,1.3139173]
[1760057222862,0.19584622,1262.6,1262.5,0.53752223]
[1760057227166,0.19584622,1262.6,1262.5,0.73197547]
[1760057227366,0.19584622,1262.6,1262.5,1.50977322]
[1760057231767,0.19584622,1262.6,1262.5,0.53752223]
[1760057231965,0.19584622,1262.6,1262.5,1.12149053]
[1760057232470,0.19584622,1262.6,1262.5,0.53752223]
[1760057278314,0.3926823,1262.6,1262.5,1.12149053]
[1760057279811,0.19584622,1262.6,1262.5,0.53752223]
[1760057280615,0.19584622,1262.6,1262.5,1.12149053]
[1760057280815,0.19584622,1262.6,1262.5,0.53752223]
[1760057281416,0.19584622,1262.6,1262.5,1.12149053]
[1760057282216,0.19584622,1262.6,1262.5,0.53752223]
[1760057287120,0.19584622,1262.6,1262.5,1.12149053]
[1760057288224,0.19584622,1262.6,1262.5,0.53752223]
[1760057303531,0.19584622,1262.6,1261.9,0.5839683]
[1760057303732,0.19584622,1262.6,1262.0,1.12741565]
[1760057304031,0.19584622,1262.6,1262.1,0.54344735]
[1760057304233,0.19584622,1262.6,1262.2,0.54344735]
[1760057304433,0.19584622,1262.6,1262.3,0.54344735]
[1760057304627,0.19584622,1262.6,1262.4,0.54344735]
[1760057304832,0.19584622,1262.6,1262.5,0.54345368]
[1760057305031,0.19584622,1262.6,1261.9,0.5839683]
[1760057305229,0.19584622,1262.6,1262.0,0.54363447]
[1760057305531,0.19584622,1262.6,1262.1,0.54363447]
[1760057305732,0.19584622,1262.6,1261.6,0.5839683]
[1760057306032,0.19584622,1262.6,1261.7,0.54354303]
[1760057306230,0.19584622,1262.6,1261.8,0.54354303]
[1760057306431,0.19584622,1262.6,1261.9,0.54354303]
[1760057306731,0.19584622,1262.6,1262.0,0.54354303]
[1760057306930,0.19584622,1262.6,1262.1,0.54354303]
[1760057307134,0.19584622,1262.6,1261.6,0.5839683]
[1760057307135,0.19584622,1262.6,1262.2,0.54354303]
[1760057307331,0.19584622,1262.6,1261.7,0.5839683]
[1760057307534,0.19584622,1262.6,1261.8,0.54284085]
[1760057307737,0.19584622,1262.6,1261.9,0.54284085]
[1760057307937,0.19584622,1262.6,1262.0,0.54284085]
[1760057308233,0.19584622,1262.6,1262.1,0.54284085]
[1760057308436,0.19584622,1262.6,1262.2,0.54284085]
[1760057308633,0.19584622,1262.6,1262.3,0.54284085]
[1760057308933,0.19584622,1262.6,1261.7,0.5839683]
[1760057309136,0.19584622,1262.6,1261.8,0.54272538]
[1760057309433,0.19584622,1262.6,1261.9,0.5426384]
[1760057309636,0.19584622,1262.6,1262.0,0.5426384]
[1760057309836,0.19584622,1262.6,1262.1,0.5426384]
[1760057310036,0.19584622,1262.6,1262.2,0.5426384]
[1760057310336,0.19584622,1262.6,1261.7,0.58775203]
[1760057310533,0.19584622,1262.6,1261.8,0.54252556]
[1760057310732,0.19584622,1262.6,1261.9,0.54252556]
[1760057310934,0.19584622,1262.6,1262.0,0.54252556]
[1760057311133,0.19584622,1262.6,1262.1,0.54252556]
[1760057311336,0.19584622,1262.6,1262.2,0.54252556]
[1760057311533,0.19584622,1262.6,1261.7,0.58775203]
[1760057311834,0.19584622,1262.6,1261.8,0.54243233]
[1760057312133,0.19584622,1262.6,1261.9,0.54243233]
[1760057312337,0.19584622,1262.6,1262.0,0.54243233]
[1760057312536,0.19584622,1262.6,1262.1,0.54243233]
[1760057312737,0.19584622,1262.6,1262.2,0.54243233]
[1760057312936,0.19584622,1262.6,1262.3,0.54243233]
[1760057313138,0.19584622,1262.6,1262.4,0.54243233]
[1760057313433,0.19584622,1262.6,1262.5,0.54243233]
[1760057314638,0.19584622,1262.6,1261.8,0.78220527]
[1760057314639,0.19584622,1262.6,1261.4,0.58775203]
[1760057314938,0.19584622,1262.6,1261.5,0.54240897]
[1760057315138,0.19584622,1262.6,1261.6,0.54240897]
[1760057315338,0.19584622,1262.6,1261.7,0.54240897]
[1760057315539,0.19584622,1262.6,1261.8,0.54240897]
[1760057315737,0.19584622,1262.6,1261.9,0.54240897]
[1760057315934,0.19584622,1262.6,1261.4,0.58775203]
[1760057316136,0.19584622,1262.6,1261.5,0.54231332]
[1760057316336,0.19584622,1262.6,1261.4,0.58775203]
[1760057316337,0.19584622,1262.6,1261.6,0.54231332]
[1760057316536,0.19584622,1262.6,1261.7,0.54231332]
[1760057316739,0.19584622,1262.6,1261.8,0.54231332]
[1760057316937,0.19584622,1262.6,1261.9,0.54231332]
[1760057317140,0.19584622,1262.6,1261.4,0.58775203]
[1760057317436,0.19584622,1262.6,1261.5,0.54221276]
[1760057317641,0.19584622,1262.6,1261.6,0.54221276]
[1760057317836,0.19584622,1262.6,1261.7,0.54221276]
[1760057318042,0.19584622,1262.6,1261.8,0.54221276]
[1760057318242,0.19584622,1262.6,1261.3,0.58775203]
[1760057318440,0.19584622,1262.6,1261.4,0.54216659]
[1760057318639,0.19584622,1262.6,1261.5,0.54216659]
[1760057318841,0.19584622,1262.6,1261.6,0.54216659]
[1760057319041,0.19584622,1262.6,1261.7,0.54216659]
[1760057319239,0.19584622,1262.6,1261.8,0.54216659]
[1760057319443,0.19584622,1262.6,1261.9,0.54216659]
[1760057319640,0.19584622,1262.6,1261.3,0.58775203]
[1760057319839,0.19584622,1262.6,1261.4,0.5420295]
[1760057320040,0.19584622,1262.6,1261.5,0.5420295]
[1760057320241,0.19584622,1262.6,1259.9,0.78220527]
[1760057320440,0.19644486,1260.3,1260.1,0.58775203]
[1760057320644,0.19644486,1260.3,1260.2,0.54217468]
[1760057322242,0.19644486,1260.3,1260.2,1.12992671]
[1760057323047,0.19644486,1260.3,1260.2,0.54217468]
[1760057323448,0.19644486,1260.3,1260.2,1.12729231]
[1760057323649,0.19644486,1260.3,1260.2,0.54217468]
[1760057325648,0.19584622,1262.6,1260.2,0.54217468]
[1760057325849,0.19584622,1262.6,1260.3,0.54217468]
[1760057326043,0.19584622,1262.6,1260.4,0.54217468]
[1760057326246,0.19584622,1262.6,1260.5,0.54217468]
[1760057326444,0.19584622,1262.6,1259.9,0.58422361]
[1760057326652,0.19584622,1262.6,1260.0,0.53901394]
[1760057326943,0.19584622,1262.6,1260.1,0.53901394]
[1760057327148,0.19584622,1262.6,1260.2,0.53901394]
[1760057327345,0.19584622,1262.6,1259.9,0.58422361]
[1760057327346,0.19584622,1262.6,1260.3,0.53901394]
[1760057327549,0.19584622,1262.6,1260.4,0.53901394]
[1760057327746,0.19584622,1262.6,1260.5,0.53901394]
[1760057327950,0.19584622,1262.6,1259.9,0.58422361]
[1760057328249,0.19584622,1262.6,1260.0,0.5384355]
[1760057328450,0.19584622,1262.6,1259.9,0.58422361]
[1760057328451,0.19584622,1262.6,1260.1,0.5384355]
[1760057328646,0.19584622,1262.6,1260.2,0.5384355]
[1760057328849,0.19584622,1262.6,1260.3,0.5384355]
[1760057329145,0.19584622,1262.6,1260.4,0.5384355]
[1760057329350,0.19584622,1262.6,1260.5,0.5384355]
[1760057329649,0.19584622,1262.6,1259.9,0.58422361]
[1760057329846,0.19584622,1262.6,1260.0,0.53747873]
[1760057330050,0.19584622,1262.6,1260.1,0.53747873]
[1760057330346,0.19584622,1262.6,1260.2,0.53747873]
[1760057330645,0.19584622,1262.6,1259.8,0.58422361]
[1760057330646,0.19584622,1262.6,1260.3,0.53747873]
[1760057330849,0.19584622,1262.6,1260.4,0.53747873]
[1760057331046,0.19584622,1262.6,1260.5,0.53747873]
[1760057331247,0.19584622,1262.6,1259.7,0.77867685]
[1760057331451,0.19437624,1259.9,1259.8,0.53675518]
[1760057334458,0.19584622,1262.6,1259.8,0.53675518]
[1760057334759,0.19584622,1262.6,1259.9,0.53675518]
[1760057334956,0.19584622,1262.6,1260.0,0.53675518]
[1760057335155,0.19584622,1262.6,1260.1,0.53675518]
[1760057335356,0.19584622,1262.6,1260.2,0.53675518]
[1760057335556,0.19584622,1262.6,1260.3,0.53675518]
[1760057335754,0.19584622,1262.6,1259.6,0.19445324]
[1760057335959,0.19396902,1259.8,1259.7,0.53573419]
[1760057336956,0.19584622,1262.6,1259.7,0.53573419]
[1760057337159,0.19584622,1262.6,1259.8,0.53573419]
[1760057337360,0.19584622,1262.6,1259.9,0.53573419]
[1760057337558,0.19584622,1262.6,1260.0,0.53573419]
[1760057337859,0.19584622,1262.6,1260.1,0.53573419]
[1760057338159,0.19584622,1262.6,1260.2,0.53573419]
[1760057338360,0.19584622,1262.6,1259.6,0.77867685]
[1760057338655,0.19374406,1259.9,1259.7,0.72949247]
[1760057338860,0.19374406,1259.9,1259.8,0.53503923]
[1760057343365,0.19584622,1262.6,1259.8,0.53503923]
[1760057343565,0.19584622,1262.6,1259.9,0.53503923]
[1760057343762,0.19584622,1262.6,1259.5,0.19445324]
[1760057343962,0.19367886,1259.7,1259.6,0.534756]
[1760057349273,0.13769064,1265.3,1259.6,0.534756]
[1760057349473,0.13769064,1265.3,1259.7,0.534756]
[1760057349672,0.13769064,1265.3,1259.8,0.534756]
[1760057349872,0.13769064,1265.3,1259.4,0.19445324]
[1760057350172,0.19360061,1259.6,1259.5,0.53448935]
[1760057350569,1.96694924,1264.9,1259.5,0.53448935]
[1760057350771,1.96694924,1264.9,1259.1,0.19445324]
[1760057350968,0.19362352,1259.3,1259.2,0.53481157]
[1760057352573,1.96694924,1264.9,1259.2,0.53481157]
[1760057352770,1.96694924,1264.9,1259.3,0.53486479]
[1760057352973,1.96694924,1264.9,1259.4,0.53486522]
[1760057353170,1.96694924,1264.9,1258.9,0.19445324]
[1760057353374,0.19356099,1259.2,1259.0,0.53486522]
[1760057353570,0.19356099,1259.2,1259.1,0.53486522]
[1760057355476,1.96694924,1264.7,1259.1,0.53486522]
[1760057355776,4.85836882,1265.3,1259.2,0.53486522]
[1760057355975,2.10463988,1265.3,1259.3,0.53486522]
[1760057356175,1.96694924,1265.2,1259.4,0.53486522]
[1760057356477,1.96694924,1265.2,1258.9,0.19445324]
[1760057356777,0.19357104,1259.1,1259.0,0.5349719]
[1760057359872,0.13769064,1265.3,1259.0,0.5349719]
[1760057360077,0.13769064,1265.3,1259.1,0.5349719]
[1760057360272,0.13769064,1265.3,1259.2,0.5349719]
[1760057360572,0.13769064,1265.3,1259.3,0.5349719]
[1760057360874,0.13769064,1265.3,1259.4,0.5349719]
[1760057361073,0.13769064,1265.3,1258.8,0.19445324]
[1760057361277,0.1937145,1259.1,1258.9,0.53561028]
[1760057361474,0.1937145,1259.1,1259.0,0.53561028]
[1760057363583,0.1937145,1259.1,1258.7,0.19445324]
[1760057363782,0.1937145,1259.1,1258.8,0.53659128]
[1760057363981,1.96694924,1264.3,1258.9,0.53659128]
[1760057364278,1.96694924,1264.3,1258.6,0.19445324]
[1760057364483,0.19394567,1258.8,1258.7,0.53679501]
[1760057368189,1.96694924,1263.8,1258.4,0.19445324]
[1760057368487,0.1941307,1258.6,1258.5,0.537293]
[1760057368687,0.1941307,1258.6,1258.2,0.19445324]
[1760057368885,0.1941307,1258.4,1258.3,0.53748023]
[1760057370886,0.13812566,1258.7,1258.3,0.53748023]
[1760057371088,0.13812566,1258.7,1257.9,0.19445324]
[1760057371289,0.1942711,1258.2,1258.0,0.53809708]
[1760057371491,0.1942711,1258.2,1258.1,0.53809708]
[1760057372888,0.1942711,1258.3,1258.1,1.31589483]
[1760057373092,0.1942711,1258.3,1258.2,0.53809708]
[1760057373488,0.13812566,1258.7,1258.2,0.53809708]
[1760057373687,0.13812566,1258.7,1258.4,0.58391002]
[1760057373887,0.13812566,1258.7,1258.5,0.53809708]
[1760057374090,0.13812566,1258.7,1258.6,0.53809708]
[1760057377292,1.96694924,1264.3,1258.6,0.53809708]
[1760057377591,1.96694924,1264.3,1258.7,0.53809708]
[1760057377789,6.29423758,1268.5,1258.8,0.53809708]
[1760057377790,0.13806264,1259.0,1258.8,0.53809708]
[1760057377988,1.96694924,1263.9,1258.9,0.53809708]
[1760057378189,0.1380651,1259.2,1259.0,0.53809708]
[1760057378392,0.1380651,1259.2,1259.1,0.53809708]
[1760057378593,1.96694924,1263.1,1259.1,0.53809708]
[1760057378795,0.13807579,1259.2,1258.7,0.58391002]
[1760057378994,0.13807579,1259.2,1258.8,0.54119979]
[1760057379188,1.96694924,1263.1,1258.9,0.54119979]
[1760057379395,0.13809496,1259.1,1259.0,0.54119979]
[1760057379595,2.75372894,1263.6,1259.0,0.54119979]
[1760057379795,1.96694924,1263.7,1259.1,0.54119979]
[1760057379995,0.13807305,1259.1,1258.5,0.58391002]
[1760057380196,0.19559932,1258.6,1258.5,0.58391002]
[1760057380391,0.19559932,1258.6,1258.5,1.12574355]
[1760057382994,0.19559932,1258.6,1258.5,0.54183353]
[1760057383896,0.19559932,1258.6,1258.5,1.12574355]
[1760057385802,0.19559932,1258.7,1258.5,1.12574355]
[1760057386098,0.19559932,1258.7,1258.6,0.54183353]
[1760057386799,0.13808127,1259.0,1258.6,0.54183353]
[1760057386998,0.13808127,1259.0,1258.7,0.54183353]
[1760057387198,0.13808127,1259.0,1258.8,0.54183353]
[1760057387402,0.13808127,1259.0,1258.9,0.54183353]
[1760057392904,0.13808127,1259.0,1258.9,0.54277722]
[1760057406401,1.96694924,1262.2,1258.9,0.54277722]
[1760057406604,1.96694924,1262.2,1259.0,0.54277722]
[1760057406806,0.13810373,1259.2,1259.1,0.54277722]
[1760057407006,1.96694924,1262.3,1259.1,0.54277722]
[1760057407207,1.96694924,1262.3,1259.2,0.54277722]
[1760057407406,1.96694924,1262.3,1258.7,0.58391002]
[1760057407603,1.96694924,1262.3,1258.8,0.54438087]
[1760057407807,0.13809003,1261.6,1258.9,0.54438087]
[1760057408006,0.13809003,1261.6,1259.0,0.54438087]
[1760057408310,0.13809003,1261.6,1259.1,0.54438087]
[1760057408506,0.13809003,1261.6,1259.2,0.54438087]
[1760057408706,0.13809003,1261.6,1259.3,0.54438087]
[1760057408904,0.13809003,1261.6,1259.4,0.54438087]
[1760057409105,0.13809003,1261.6,1259.5,0.54438087]
[1760057409305,0.13809003,1261.6,1259.6,0.54438087]
[1760057409508,0.13809003,1261.6,1259.1,0.58391002]
[1760057409809,0.13809003,1261.6,1259.2,1.12833983]
[1760057410009,0.13809003,1261.6,1259.3,0.54442981]
[1760057410205,0.13809003,1261.6,1259.4,0.54442981]
[1760057410410,0.13809003,1261.6,1259.5,0.54442981]
[1760057410608,0.13809003,1261.6,1259.6,0.54442981]
[1760057410817,0.13809003,1261.6,1259.1,0.58391002]
[1760057411020,0.13809003,1261.6,1259.2,0.54440682]
[1760057411219,0.13809003,1261.6,1259.3,0.54440682]
[1760057411514,0.13809003,1261.6,1259.4,0.54440682]
[1760057411814,0.13809003,1261.6,1259.5,0.54440682]
[1760057412021,0.13809003,1261.6,1259.6,0.54440682]
[1760057412218,0.13809003,1261.6,1259.7,0.54440682]
[1760057412422,0.13809003,1261.6,1259.3,0.58391002]
[1760057412619,0.13809003,1261.6,1259.4,0.5439988]
[1760057412822,0.13809003,1261.6,1259.5,0.5439988]
[1760057413023,0.13809003,1261.6,1259.1,0.77836326]
[1760057413323,0.19702517,1259.3,1259.2,0.54398803]
[1760057414425,0.19702517,1259.4,1259.2,1.12789805]
[1760057414725,0.19702517,1259.4,1259.3,0.54398803]
[1760057417026,0.13809003,1261.6,1259.3,0.54398803]
[1760057417227,0.13809003,1261.6,1259.4,0.54398803]
[1760057417427,0.13809003,1261.6,1258.9,0.77836326]
[1760057417723,0.19691474,1259.1,1259.0,0.5437721]
[1760057419027,0.19691474,1259.1,1259.0,0.5438051]
[1760057423229,0.19691474,1259.1,1259.0,1.13297693]
[1760057423530,0.19691474,1259.1,1259.0,0.5438051]
[1760057428435,0.13809003,1261.6,1259.0,0.5438051]
[1760057428639,0.13809003,1261.6,1259.1,0.5438051]
[1760057428837,0.13809003,1261.6,1259.2,0.5438051]
[1760057429034,0.13809003,1261.6,1259.3,0.5438051]
[1760057429335,0.13809003,1261.6,1259.4,0.5438051]
[1760057429540,0.13809003,1261.6,1259.5,0.5438051]
[1760057429740,0.13809003,1261.6,1258.8,0.58874822]
[1760057429940,0.19685502,1259.0,1258.9,0.54390166]
[1760057430435,0.19685502,1259.0,1258.9,1.13264988]
[1760057431539,0.19685502,1259.1,1258.9,0.54390166]
[1760057431738,0.19685502,1259.1,1259.0,1.13283144]
[1760057431940,0.19685502,1259.1,1259.0,0.54390166]
[1760057433737,0.19685502,1259.2,1259.0,0.54390166]
[1760057434041,0.19685502,1259.2,1259.1,0.54390166]
[1760057434241,0.19685502,1259.2,1259.1,0.54389993]
[1760057434439,0.13809003,1261.6,1259.1,0.54389993]
[1760057434736,0.13809003,1261.6,1259.2,1.13295212]
[1760057434938,0.13809003,1261.6,1259.3,0.54389993]
[1760057435134,0.13809003,1261.6,1259.4,0.54389993]
[1760057435337,0.13809003,1261.6,1259.5,0.54389993]
[1760057435637,0.13809003,1261.6,1259.6,0.54389993]
[1760057435835,0.13809003,1261.6,1259.3,0.58905219]
[1760057436038,0.13809003,1261.6,1259.4,0.54392409]
[1760057436236,0.13809003,1261.6,1259.5,0.54392409]
[1760057436439,0.13809003,1261.6,1259.6,0.54392409]
[1760057436639,0.13809003,1261.6,1259.7,0.54392409]
[1760057436840,0.13809003,1261.6,1259.2,0.58905219]
[1760057437040,0.13809003,1261.6,1259.3,0.54394081]
[1760057437240,0.13809003,1261.6,1259.4,0.54394081]
[1760057437539,0.13809003,1261.6,1259.5,0.54394081]
[1760057437743,0.13809003,1261.6,1259.6,0.54394081]
[1760057437941,0.13809003,1261.6,1259.7,0.54394081]
[1760057438140,0.13809003,1261.6,1259.8,0.54394081]
[1760057438345,0.13809003,1261.6,1259.3,0.58905219]
[1760057438541,0.13809003,1261.6,1259.4,0.54388289]
[1760057438745,0.13809003,1261.6,1259.5,0.54388289]
[1760057438941,0.13809003,1261.6,1259.6,0.54388289]
[1760057439148,0.13809003,1261.6,1259.7,0.54388289]
[1760057439447,0.13809003,1261.6,1259.8,0.54388289]
[1760057439643,0.13809003,1261.6,1259.9,0.54388289]